Body Name,Body,Supplier Name,Spending Service,Nature of Spend,Ledger Date,Invoice Reference,Net Amount (excluding VAT)
Lancaster City Council,30UH,1Gas,Regeneration and Planning,Capital Payments To Contractors,13/09/2013,20795,564.00
Lancaster City Council,30UH,A Henning,Environmental Services,Contracted Services,26/09/2013,cpr000155,994.00
Lancaster City Council,30UH,A Marsden Windows,Health & Housing,Capital Grants,02/09/2013,Inv. AM 572,2070.83
Lancaster City Council,30UH,A1 Supaskips Ltd,Environmental Services,Services - Waste Disposal,02/09/2013,53465,1421.58
Lancaster City Council,30UH,A1 Supaskips Ltd,Environmental Services,Services - Waste Disposal,06/09/2013,53568,576.80
Lancaster City Council,30UH,A1 Supaskips Ltd,Environmental Services,Services - Waste Disposal,10/09/2013,53697,582.80
Lancaster City Council,30UH,A1 Supaskips Ltd,Environmental Services,Services - Waste Disposal,17/09/2013,53828,1397.90
Lancaster City Council,30UH,A1 Supaskips Ltd,Environmental Services,Services - Waste Disposal,24/09/2013,53965,790.80
Lancaster City Council,30UH,A1 Supaskips Ltd,Environmental Services,Services - Waste Disposal,25/09/2013,54183,790.80
Lancaster City Council,30UH,Abritas Ltd,Health & Housing,Computer Equipt - Running,26/09/2013,3762,19243.00
Lancaster City Council,30UH,Age UK Lancashire,Health & Housing,Grants,26/09/2013,bpr000195,3916.60
Lancaster City Council,30UH,Alan Dick Engineering Ltd,Health & Housing,R & M - Buildings,18/09/2013,46510,7240.00
Lancaster City Council,30UH,Allied (Lancaster) Limited,Environmental Services,Recharge from Lancaster Marketgate,02/09/2013,655,2500.00
Lancaster City Council,30UH,Amazon UK,Resources,Equipment Funded by Reserves,26/09/2013,20969,509.64
Lancaster City Council,30UH,Amazon UK,Resources,Equipment Funded by Reserves,19/09/2013,20898,632.92
Lancaster City Council,30UH,Anchor Flooring Limited,Environmental Services,Capital Payments To Contractors,10/09/2013,AF/4072,1386.00
Lancaster City Council,30UH,Anchor Flooring Limited,Environmental Services,Capital Payments To Contractors,23/09/2013,AF/4086,1134.00
Lancaster City Council,30UH,Anglo Espanol Ltd t/a Plastech Windows,Health & Housing,Capital Grants,03/09/2013,spr000262,14089.00
Lancaster City Council,30UH,Approved Inspectors Limited,Health & Housing,Capital Grants,03/09/2013,spr000263,540.00
Lancaster City Council,30UH,Aquarius Acoustics,Health & Housing,Hire Of Equipment,25/09/2013,2k13-65,2775.00
Lancaster City Council,30UH,Arc,Health & Housing,Venue - Premises Hire Costs,19/09/2013,1409,3986.70
Lancaster City Council,30UH,ATG Access Ltd,Regeneration and Planning,R & M - Sea & River / Promenade,03/09/2013,MS1301955,1870.00
Lancaster City Council,30UH,ATS Euromaster Ltd,Environmental Services,Repair & Mtce Of Vehicles,18/09/2013,A9980092426,1741.84
Lancaster City Council,30UH,Bay Scaffolding Ltd,Environmental Services,Materials - General,16/09/2013,7890,675.00
Lancaster City Council,30UH,Bay Scaffolding Ltd,Environmental Services,Materials - General,16/09/2013,7893,875.00
Lancaster City Council,30UH,Bay Scaffolding Ltd,Environmental Services,Materials - General,16/09/2013,7894,850.00
Lancaster City Council,30UH,Bay Scaffolding Ltd,Environmental Services,Materials - General,16/09/2013,7895,625.00
Lancaster City Council,30UH,Beaver 84 Ltd,Health & Housing,Hire Of Equipment,25/09/2013,H1213531,584.80
Lancaster City Council,30UH,BemroseBooth Ltd,Environmental Services,Printing & Stationery,18/09/2013,371303,1030.00
Lancaster City Council,30UH,Bolton-Le-Sands Parish Council,Environmental Services,Parish Toilet Scheme,02/09/2013,cpr000143,6099.00
Lancaster City Council,30UH,Bonnar Keenlyside,Regeneration and Planning,Services - Consultants,25/09/2013,4020,1784.20
Lancaster City Council,30UH,Booker,Health & Housing,Materials For Resale,17/09/2013,20862,"1,821.48"
Lancaster City Council,30UH,Booker,Health & Housing,Materials For Resale,24/09/2013,20941,524.60
Lancaster City Council,30UH,Bowker IT Limited,Resources,Software Purchase\Licences,05/09/2013,904982,732.46
Lancaster City Council,30UH,British Gas Business,Health & Housing,Electricity,24/09/2013,63428141/1,996.97
Lancaster City Council,30UH,British Gas Business,Health & Housing,Electricity,26/09/2013,63587893/1,1028.94
Lancaster City Council,30UH,British Gas Business,Environmental Services,Electricity,04/09/2013,62997139/1,8117.75
Lancaster City Council,30UH,British Gas Business,Health & Housing,Gas,19/09/2013,6353903/1,692.58
Lancaster City Council,30UH,British Gas Business,Health & Housing,Gas,19/09/2013,63653901/1,945.00
Lancaster City Council,30UH,British Gas Business,Health & Housing,Gas,19/09/2013,63653902/1,601.86
Lancaster City Council,30UH,British Gas Business,Health & Housing,Gas,19/09/2013,63653904/1,599.87
Lancaster City Council,30UH,British Gas Business,Health & Housing,Gas,19/09/2013,63653905/1,1053.02
Lancaster City Council,30UH,Bucket & Spade Marketing,Health & Housing,Miscellaneous Advertising,12/09/2013,339,2500.00
Lancaster City Council,30UH,Burrows (GM) Ltd,Environmental Services,Materials - General,18/09/2013,166630,819.29
Lancaster City Council,30UH,Butterfly Conservation,Regeneration and Planning,Services - General,11/09/2013,npr000088,8453.03
Lancaster City Council,30UH,C H Brownsord Ltd,Environmental Services,Contracted Services,16/09/2013,332,8300.00
Lancaster City Council,30UH,C H Brownsord Ltd,Environmental Services,Void Maintenance - External,18/09/2013,333,9860.00
Lancaster City Council,30UH,C H Brownsord Ltd,Environmental Services,Void Maintenance - External,19/09/2013,326,1895.00
Lancaster City Council,30UH,Cable&Wireless UK,Resources,Line Rental - Members,19/09/2013,B1-16257303,799.72
Lancaster City Council,30UH,Cable&Wireless UK,Resources,Mobile Telephones,19/09/2013,UK10/092013/3718,1933.33
Lancaster City Council,30UH,Cable&Wireless UK,Resources,Telephones,05/09/2013,12226635,1207.54
Lancaster City Council,30UH,Canal & River Trust,Resources,Rent,06/09/2013,0000027567,900.00
Lancaster City Council,30UH,Capita Business Services Ltd,Resources,Service Training Budget,05/09/2013,40222751,-765.00
Lancaster City Council,30UH,Carlisle Glass Limited,Environmental Services,Other Construction Costs,04/09/2013,M 607788,795.00
Lancaster City Council,30UH,Carlisle Glass Limited,Environmental Services,Other Construction Costs,24/09/2013,M 616142,775.00
Lancaster City Council,30UH,Carlisle Glass Limited,Environmental Services,White Lund Stock,12/09/2013,M 613534,1062.34
Lancaster City Council,30UH,Cheryl Towey (Instructor),Health & Housing,Services - General,02/09/2013,40,564.00
Lancaster City Council,30UH,Cipfa,Resources,Service Training Budget,26/09/2013,5113662,970.00
Lancaster City Council,30UH,City Communications,Environmental Services,Contract Maintenance,23/09/2013,1294,1120.00
Lancaster City Council,30UH,Classic Gifts & Engravings Ltd,Health & Housing,Sundry Expenses,12/09/2013,1937,3246.70
Lancaster City Council,30UH,Cleanall Services Ltd.,Resources,Other Cleaning,11/09/2013,20765,6022.38
Lancaster City Council,30UH,CleanerWay,Health & Housing,Works In Default,23/09/2013,PENNINE VIEW,3320.00
Lancaster City Council,30UH,CME Artist Services,Health & Housing,Miscellaneous Advertising,19/09/2013,290813,750.00
Lancaster City Council,30UH,Colin Procter,Environmental Services,Contracted Services,18/09/2013,cpr000147,598.50
Lancaster City Council,30UH,Concorde Informatics Technology Group Limited,Resources,Infrastructure - Update & Maintenance,25/09/2013,INV31917,1089.25
Lancaster City Council,30UH,Concorde Informatics Technology Group Limited,Resources,Infrastructure - Update & Maintenance,25/09/2013,INV31917,871.34
Lancaster City Council,30UH,Concorde Informatics Technology Group Limited,Resources,Infrastructure - Update & Maintenance,25/09/2013,INV31917,1154.11
Lancaster City Council,30UH,Constructing the Future Lancashire Limited,Environmental Services,Apprenticeship Scheme,04/09/2013,CTFL/SINV/00000401,1676.37
Lancaster City Council,30UH,Container Care Solutions,Environmental Services,Materials For Resale,02/09/2013,3410,650.00
Lancaster City Council,30UH,Container Care Solutions,Environmental Services,Materials For Resale,18/09/2013,3424,1800.00
Lancaster City Council,30UH,Container Care Solutions,Environmental Services,Materials For Resale,18/09/2013,3436,680.00
Lancaster City Council,30UH,Container Care Solutions,Environmental Services,Plastic Refuse Sacks,04/09/2013,3419,680.00
Lancaster City Council,30UH,Container Care Solutions,Environmental Services,Plastic Refuse Sacks,04/09/2013,3419,680.00
Lancaster City Council,30UH,Contour Showers Ltd.,Environmental Services,Materials - General,06/09/2013,412699,597.00
Lancaster City Council,30UH,Contour Showers Ltd.,Environmental Services,Materials - General,13/09/2013,413821,608.40
Lancaster City Council,30UH,Contour Showers Ltd.,Environmental Services,Materials - General,13/09/2013,413829,575.40
Lancaster City Council,30UH,"Cook, Hammond and Kell",Regeneration and Planning,Services - General,13/09/2013,0000074353,750.00
Lancaster City Council,30UH,Co-Operative Funeral Service,Health & Housing,Services - Burial Of The Dead,19/09/2013,F45362-01954,1313.00
Lancaster City Council,30UH,Corona Energy,Health & Housing,Gas,19/09/2013,08624066,748.19
Lancaster City Council,30UH,Countrystyle Meats Farmshop,Health & Housing,Materials For Resale,17/09/2013,20857,526.49
Lancaster City Council,30UH,County Care Services Ltd T/A Carewatch,Health & Housing,Contracted Services,05/09/2013,2013,700.00
Lancaster City Council,30UH,County Care Services Ltd T/A Carewatch,Health & Housing,Contracted Services,05/09/2013,3075,700.00
Lancaster City Council,30UH,County Care Services Ltd T/A Carewatch,Health & Housing,Contracted Services,05/09/2013,3077,700.00
Lancaster City Council,30UH,County Care Services Ltd T/A Carewatch,Health & Housing,Contracted Services,05/09/2013,3081,700.00
Lancaster City Council,30UH,County Care Services Ltd T/A Carewatch,Health & Housing,Contracted Services,05/09/2013,3093,700.00
Lancaster City Council,30UH,Craig Jury Plant & Groundworks Limited,Environmental Services,Contracted Services,06/09/2013,00112,960.00
Lancaster City Council,30UH,Craig Jury Plant & Groundworks Limited,Environmental Services,Contracted Services,06/09/2013,00113,1080.00
Lancaster City Council,30UH,Crossling Ltd,Environmental Services,White Lund Stock,10/09/2013,877953,798.80
Lancaster City Council,30UH,Cumbria County Council,Resources,Debtors (Powersol) refunds,05/09/2013,ndi016748,8805.00
Lancaster City Council,30UH,Cumbria Wildlife Trust,Regeneration and Planning,Grants,11/09/2013,npr000089,8484.77
Lancaster City Council,30UH,Cyclescheme Limited,Resources,Purchase of Cycles,03/09/2013,W199939,833.33
Lancaster City Council,30UH,Cyclescheme Limited,Resources,Purchase of Cycles,04/09/2013,W199360,833.33
Lancaster City Council,30UH,Cyclescheme Limited,Resources,Purchase of Cycles,04/09/2013,W199360,511.66
Lancaster City Council,30UH,D A Edgar Plastering & Tiling,Environmental Services,Capital Payments To Contractors,02/09/2013,14,1350.00
Lancaster City Council,30UH,D A Edgar Plastering & Tiling,Environmental Services,Capital Payments To Contractors,20/09/2013,15,975.00
Lancaster City Council,30UH,Damtrad Limited,Environmental Services,White Lund Stock,17/09/2013,13/3600/11/09,1464.00
Lancaster City Council,30UH,Daniel Thwaites plc,Health & Housing,Bar Supplies,17/09/2013,20866,"1,716.39"
Lancaster City Council,30UH,Dave Wilson Developments,Health & Housing,Capital Grants,18/09/2013,spr000271,4271.00
Lancaster City Council,30UH,Dave Wilson Developments,Health & Housing,Capital Grants,26/09/2013,spr000292,2645.80
Lancaster City Council,30UH,David Willan,Health & Housing,Materials For Resale,17/09/2013,20858,613.98
Lancaster City Council,30UH,Dell Corporation Ltd,Resources,Purchase Of Equipment,12/09/2013,20775,"2,462.20"
Lancaster City Council,30UH,Derand Ltd,Regeneration and Planning,Services - General,25/09/2013,2309131,4231.41
Lancaster City Council,30UH,Dickinson & Whitaker Limited,Health & Housing,Capital Grants,26/09/2013,spr000290,2520.00
Lancaster City Council,30UH,Duggie Chapman Associates,Health & Housing,Exhibitions & Events - Expenses,04/09/2013,1783,500.00
Lancaster City Council,30UH,Dutton International Limited t/a Masterstaff,Environmental Services,Contracted Services,26/09/2013,M175155,523.49
Lancaster City Council,30UH,E.ON,Health & Housing,Electricity,12/09/2013,HF058062F,1161.81
Lancaster City Council,30UH,E.ON,Environmental Services,Electricity,18/09/2013,HFO177D8F,691.02
Lancaster City Council,30UH,E.ON,Environmental Services,Electricity,25/09/2013,46600372776,508.45
Lancaster City Council,30UH,Ebuyer,Resources,Office Equipment,26/09/2013,20968,"1,544.97"
Lancaster City Council,30UH,Ebuyer,Resources,Office Equipment,19/09/2013,20897,"1,544.97"
Lancaster City Council,30UH,Edmundson Electrical Ltd,Environmental Services,Materials - General,17/09/2013,078134,1228.73
Lancaster City Council,30UH,Emo Oil Ltd,Environmental Services,White Lund Stock,09/09/2013,1068050,2909.34
Lancaster City Council,30UH,Emo Oil Ltd,Environmental Services,White Lund Stock,12/09/2013,1068041,20390.47
Lancaster City Council,30UH,Emo Oil Ltd,Environmental Services,White Lund Stock,16/09/2013,1136492,25579.74
Lancaster City Council,30UH,Emo Oil Ltd,Environmental Services,White Lund Stock,27/09/2013,1210392,24671.17
Lancaster City Council,30UH,Entertainers Management Ltd,Health & Housing,Exhibitions & Events - % Above Guarantee,05/09/2013,1943,13200.00
Lancaster City Council,30UH,Environment Agency,Environmental Services,Contract Maintenance,13/09/2013,44113IN,1539.00
Lancaster City Council,30UH,Envirovent Ltd,Environmental Services,Contracted Services,16/09/2013,0000111753,525.00
Lancaster City Council,30UH,Envirovent Ltd,Environmental Services,Contracted Services,25/09/2013,0000110443,525.00
Lancaster City Council,30UH,Evans Halshaw,Environmental Services,Purchase Of Vehicles Etc,03/09/2013,62312,13643.00
Lancaster City Council,30UH,Evans Halshaw,Environmental Services,Purchase Of Vehicles Etc,03/09/2013,62313,13643.00
Lancaster City Council,30UH,Evans Halshaw,Environmental Services,Purchase Of Vehicles Etc,03/09/2013,62314,13643.00
Lancaster City Council,30UH,Evans Halshaw,Environmental Services,Purchase Of Vehicles Etc,03/09/2013,62315,13643.00
Lancaster City Council,30UH,Evans Halshaw,Environmental Services,Purchase Of Vehicles Etc,03/09/2013,62316,13643.00
Lancaster City Council,30UH,Evans Halshaw,Environmental Services,Purchase Of Vehicles Etc,03/09/2013,62317,13643.00
Lancaster City Council,30UH,Evans Halshaw,Environmental Services,Purchase Of Vehicles Etc,03/09/2013,62406,15463.00
Lancaster City Council,30UH,Evans Halshaw,Environmental Services,Purchase Of Vehicles Etc,03/09/2013,62493,15463.00
Lancaster City Council,30UH,Evans Halshaw,Environmental Services,Purchase Of Vehicles Etc,03/09/2013,62494,15463.00
Lancaster City Council,30UH,Evans Halshaw,Environmental Services,Purchase Of Vehicles Etc,03/09/2013,62495,15463.00
Lancaster City Council,30UH,Evans Halshaw,Environmental Services,Purchase Of Vehicles Etc,03/09/2013,62497,15463.00
Lancaster City Council,30UH,Evans Halshaw,Environmental Services,Purchase Of Vehicles Etc,03/09/2013,62498,15463.00
Lancaster City Council,30UH,Evans Halshaw,Environmental Services,Purchase Of Vehicles Etc,03/09/2013,62499,15561.00
Lancaster City Council,30UH,Evans Halshaw,Environmental Services,Purchase Of Vehicles Etc,03/09/2013,62500,15561.00
Lancaster City Council,30UH,Evans Halshaw,Environmental Services,Purchase Of Vehicles Etc,03/09/2013,62502,15561.00
Lancaster City Council,30UH,Express Windows (North West) Ltd.,Health & Housing,Capital Grants,19/09/2013,11050,696.67
Lancaster City Council,30UH,Express Windows (North West) Ltd.,Health & Housing,Home Improvement Works,18/09/2013,Inv. 11075,1850.00
Lancaster City Council,30UH,Fire Safety Solutions Ltd,Resources,R & M - Buildings,19/09/2013,FSS-1195/42B,710.02
Lancaster City Council,30UH,Fire Safety Solutions Ltd,Resources,R & M - Buildings,19/09/2013,FSS-1195/42C,1065.13
Lancaster City Council,30UH,Fire Safety Solutions Ltd,Resources,R & M - Buildings,19/09/2013,FSS-1195/42D,710.02
Lancaster City Council,30UH,Fire Safety Solutions Ltd,Resources,R & M - Buildings,19/09/2013,FSS-1195/42G,710.02
Lancaster City Council,30UH,Fire Safety Solutions Ltd,Resources,R & M - Buildings,19/09/2013,FSS-1195/42H,710.02
Lancaster City Council,30UH,Fire Safety Solutions Ltd,Resources,R & M - Buildings,19/09/2013,FSS-1195/42I,710.02
Lancaster City Council,30UH,Fleet (Line Markers) Ltd,Environmental Services,White Lund Stock,30/09/2013,SI141342,683.70
Lancaster City Council,30UH,Flying Colours,Health & Housing,Entertainment Fees,17/09/2013,110913,550.00
Lancaster City Council,30UH,Furniture Matters,Environmental Services,Services - General,20/09/2013,362,16112.00
Lancaster City Council,30UH,G & G Signs,Environmental Services,R & M - General,16/09/2013,21340,658.60
Lancaster City Council,30UH,G Robertson (Lancaster) Ltd,Resources,R & M - Buildings,10/09/2013,20831,517.40
Lancaster City Council,30UH,G Robertson (Lancaster) Ltd,Resources,R & M - Buildings,10/09/2013,20832,2436.84
Lancaster City Council,30UH,Gardners Tiles Ltd,Environmental Services,Other Construction Costs,10/09/2013,1426,1700.23
Lancaster City Council,30UH,Gelpack Excelsior Ltd,Environmental Services,White Lund Stock,09/09/2013,SINV-061777,5263.00
Lancaster City Council,30UH,Gelpack Excelsior Ltd,Environmental Services,White Lund Stock,10/09/2013,SINV-061983,1393.00
Lancaster City Council,30UH,Gelpack Excelsior Ltd,Environmental Services,White Lund Stock,16/09/2013,SINV-062139,5572.00
Lancaster City Council,30UH,George Speight and Sons Ltd,Health & Housing,Materials For Resale,17/09/2013,20820,993.46
Lancaster City Council,30UH,Gerald Rawcliffe Motor Body Repairs,Resources,Insurance Excess,19/09/2013,24960,704.65
Lancaster City Council,30UH,Government Knowledge,Health & Housing,Service Training Budget,03/09/2013,20693,525.00
Lancaster City Council,30UH,Graham The Plumber`s Merchant,Environmental Services,Other Construction Costs,18/09/2013,0235/00735719,2727.21
Lancaster City Council,30UH,Green Close Studios,Health & Housing,Grants,24/09/2013,lancs16092013,10624.00
Lancaster City Council,30UH,Greenham Trading Limited,Environmental Services,White Lund Stock,20/09/2013,11/192524,551.41
Lancaster City Council,30UH,Gullivers Truck Hire Ltd,Environmental Services,Materials - General,04/09/2013,1308/37852,625.00
Lancaster City Council,30UH,Gullivers Truck Hire Ltd,Environmental Services,Materials - General,04/09/2013,1308/39811,625.00
Lancaster City Council,30UH,Gullivers Truck Hire Ltd,Environmental Services,Materials - General,04/09/2013,1308/70923,625.00
Lancaster City Council,30UH,Gullivers Truck Hire Ltd,Environmental Services,Materials - General,16/09/2013,1309/45079,625.00
Lancaster City Council,30UH,H Bleasdale  (French Polisher),Resources,Office Equipment,19/09/2013,SH,1200.00
Lancaster City Council,30UH,Halton Container Services Ltd,Environmental Services,Materials For Resale,16/09/2013,1200,3200.00
Lancaster City Council,30UH,Harvey Rush Entertainments,Health & Housing,Entertainment Fees,03/09/2013,936A,500.00
Lancaster City Council,30UH,Henry Alty Limited,Environmental Services,Materials - General,18/09/2013,736514,1417.50
Lancaster City Council,30UH,Herbert T. Forrest Ltd,Environmental Services,Capital Payments To Contractors,10/09/2013,101615-5,213746.22
Lancaster City Council,30UH,Herbert T. Forrest Ltd,Environmental Services,Capital Payments To Contractors,10/09/2013,101639-3,181762.38
Lancaster City Council,30UH,Herbert T. Forrest Ltd,Environmental Services,Capital Payments To Contractors,23/09/2013,101649-1,15623.68
Lancaster City Council,30UH,Heysham High School,Health & Housing,Gas,26/09/2013,IN046172,1044.91
Lancaster City Council,30UH,Honeywell Control Systems Ltd,Resources,R & M - Buildings,18/09/2013,5200770730,1263.04
Lancaster City Council,30UH,Horton Automatics Limited,Resources,R & M - Buildings,11/09/2013,4046406,557.16
Lancaster City Council,30UH,Howdens Joinery Co,Environmental Services,Other Construction Costs,12/09/2013,D61/0048579,583.50
Lancaster City Council,30UH,Howdens Joinery Co,Environmental Services,Other Construction Costs,12/09/2013,D61/0048731,854.50
Lancaster City Council,30UH,Howdens Joinery Co,Environmental Services,Other Construction Costs,27/09/2013,D61/0049130,758.00
Lancaster City Council,30UH,Humberside Tail Lifts,Environmental Services,Repair & Mtce Of Vehicles,12/09/2013,20784,965.86
Lancaster City Council,30UH,Hyder Consulting (UK) Limited,Regeneration and Planning,Services - General,20/09/2013,IUG00016241,1550.00
Lancaster City Council,30UH,Hygiene Cleaning Supplies Ltd,Environmental Services,White Lund Stock,17/09/2013,56657,649.72
Lancaster City Council,30UH,Hygiene Cleaning Supplies Ltd,Environmental Services,White Lund Stock,18/09/2013,53067,907.90
Lancaster City Council,30UH,Idox Software Limited,Regeneration and Planning,Services - General,02/09/2013,7000816,2825.00
Lancaster City Council,30UH,Improvement Development & Growth Ltd,Governance,Corporate Training Budget,20/09/2013,12866,900.00
Lancaster City Council,30UH,Instarmac Group PLC,Environmental Services,White Lund Stock,23/09/2013,423429,1561.84
Lancaster City Council,30UH,J & H M Dickson Ltd,Environmental Services,Equipment and Tools - General,20/09/2013,51512,2400.00
Lancaster City Council,30UH,J C Critchley Ltd,Environmental Services,Capital Payments To Contractors,04/09/2013,0878,650.00
Lancaster City Council,30UH,J C Critchley Ltd,Environmental Services,Capital Payments To Contractors,10/09/2013,0877,6003.25
Lancaster City Council,30UH,J C Critchley Ltd,Environmental Services,Capital Payments To Contractors,18/09/2013,0879,6715.00
Lancaster City Council,30UH,James Taylor T/A JTQ,Health & Housing,Exhibitions & Events - Guarantees,24/09/2013,1033/13,2800.00
Lancaster City Council,30UH,Jill Trafford (Instructor),Health & Housing,Services - General,25/09/2013,09/13,660.00
Lancaster City Council,30UH,Johnston Publishing Ltd,Health & Housing,Marketing,13/09/2013,1000839,500.00
Lancaster City Council,30UH,Johnston Sweepers Ltd,Environmental Services,Materials - General,27/09/2013,60962607,555.31
Lancaster City Council,30UH,Johnston Sweepers Ltd,Environmental Services,Materials - General,27/09/2013,63208070,-540.15
Lancaster City Council,30UH,KANA Software Ireland Ltd,Resources,Acquisition Of Software,12/09/2013,16204,5124.00
Lancaster City Council,30UH,Keldrigg Shutters and Grilles Ltd,Environmental Services,Contracted Services,30/09/2013,5314,856.00
Lancaster City Council,30UH,Keycraft,Health & Housing,Materials For Resale,17/09/2013,20830,"1,200.66"
Lancaster City Council,30UH,L A Earl and Co Ltd,Regeneration and Planning,Forestry Commission Works,10/09/2013,6921,520.00
Lancaster City Council,30UH,L J G Contracting Limited,Health & Housing,Capital Grants,23/09/2013,spr000276,4580.75
Lancaster City Council,30UH,Lancashire Constabulary,Environmental Services,Contracted Services,24/09/2013,7500002504,24750.00
Lancaster City Council,30UH,Lancashire County Council,Health & Housing,Capital Grants,02/09/2013,spr000257,10592.00
Lancaster City Council,30UH,Lancashire County Council,Health & Housing,Capital Grants,02/09/2013,spr000259,11634.00
Lancaster City Council,30UH,Lancashire County Council,Health & Housing,Capital Grants,02/09/2013,spr000261,828.00
Lancaster City Council,30UH,Lancashire County Council,Health & Housing,Capital Grants,17/09/2013,spr000270,2605.92
Lancaster City Council,30UH,Lancashire County Council,Health & Housing,Capital Grants,23/09/2013,spr000273,562.00
Lancaster City Council,30UH,Lancashire County Council,Health & Housing,Capital Grants,23/09/2013,spr000274,882.00
Lancaster City Council,30UH,Lancashire County Council,Health & Housing,Capital Grants,23/09/2013,spr000275,4837.00
Lancaster City Council,30UH,Lancashire County Council,Health & Housing,Capital Grants,23/09/2013,spr000277,3373.01
Lancaster City Council,30UH,Lancashire County Council,Health & Housing,Capital Grants,23/09/2013,spr000278,2037.00
Lancaster City Council,30UH,Lancashire County Council,Health & Housing,Capital Grants,23/09/2013,spr000279,14693.00
Lancaster City Council,30UH,Lancashire County Council,Health & Housing,Capital Grants,23/09/2013,spr000280,5166.00
Lancaster City Council,30UH,Lancashire County Council,Health & Housing,Capital Grants,23/09/2013,spr000281,2871.00
Lancaster City Council,30UH,Lancashire County Council,Health & Housing,Capital Grants,23/09/2013,spr000282,5060.00
Lancaster City Council,30UH,Lancashire County Council,Health & Housing,Capital Grants,23/09/2013,spr000283,5056.00
Lancaster City Council,30UH,Lancashire County Council,Health & Housing,Capital Grants,23/09/2013,spr000284,5394.00
Lancaster City Council,30UH,Lancashire County Council,Health & Housing,Capital Grants,23/09/2013,spr000285,2611.00
Lancaster City Council,30UH,Lancashire County Council,Health & Housing,Capital Grants,23/09/2013,spr000286,666.00
Lancaster City Council,30UH,Lancashire County Council,Health & Housing,Capital Grants,23/09/2013,spr000287,5334.00
Lancaster City Council,30UH,Lancashire County Council,Health & Housing,Capital Grants,23/09/2013,spr000288,5276.00
Lancaster City Council,30UH,Lancashire County Council,Health & Housing,Capital Grants,23/09/2013,spr000289,744.00
Lancaster City Council,30UH,Lancashire County Council,Health & Housing,Capital Grants,26/09/2013,spr000291,3221.00
Lancaster City Council,30UH,Lancashire County Council,Health & Housing,Capital Grants,26/09/2013,spr000293,2710.00
Lancaster City Council,30UH,Lancashire County Council,Health & Housing,Capital Grants,26/09/2013,spr000294,2824.67
Lancaster City Council,30UH,Lancashire County Council,Health & Housing,Capital Grants,26/09/2013,spr000295,2362.00
Lancaster City Council,30UH,Lancashire County Council,Health & Housing,Capital Grants,26/09/2013,spr000296,4839.00
Lancaster City Council,30UH,Lancashire County Council,Health & Housing,Capital Grants,26/09/2013,spr000297,3420.00
Lancaster City Council,30UH,Lancashire County Council,Health & Housing,Capital Grants,26/09/2013,spr000298,5086.37
Lancaster City Council,30UH,Lancashire County Council,Health & Housing,Capital Grants,26/09/2013,spr000299,2364.00
Lancaster City Council,30UH,Lancashire County Council,Health & Housing,Capital Grants,26/09/2013,spr000300,2937.00
Lancaster City Council,30UH,Lancashire County Council,Health & Housing,Capital Grants,26/09/2013,spr000301,2739.00
Lancaster City Council,30UH,Lancashire County Council,Health & Housing,Capital Grants,26/09/2013,spr000303,2702.53
Lancaster City Council,30UH,Lancashire County Council,Environmental Services,Capital Payments To Contractors,27/09/2013,5100130832,2951.00
Lancaster City Council,30UH,Lancashire County Council,Environmental Services,Capital Payments To Contractors,27/09/2013,5100130833,562.00
Lancaster City Council,30UH,Lancashire County Council,Environmental Services,Landfill Tax,10/09/2013,5200037749,57999.56
Lancaster City Council,30UH,Lancashire County Council,Environmental Services,Landfill Tax,10/09/2013,5200038473,45520.32
Lancaster City Council,30UH,Lancashire County Council,Resources,Mapzone,04/09/2013,5200038106,7203.00
Lancaster City Council,30UH,Lancashire County Council,Environmental Services,Routine Maintenance,04/09/2013,5200036945,809.29
Lancaster City Council,30UH,Lancashire County Council,Environmental Services,Routine Maintenance,18/09/2013,5200038160,874.00
Lancaster City Council,30UH,Lancashire County Council,Regeneration and Planning,Services - Consultants,26/09/2013,5200040128,600.00
Lancaster City Council,30UH,Lancashire County Council,Environmental Services,Services - Waste Disposal,10/09/2013,5200037749,14714.71
Lancaster City Council,30UH,Lancashire County Council,Environmental Services,Services - Waste Disposal,10/09/2013,5200038473,17162.58
Lancaster City Council,30UH,Lancaster Management Services T/A LaraNichols ,Health & Housing,Other Cleaning,05/09/2013,8474,634.30
Lancaster City Council,30UH,Lancaster Royal Grammar School,Health & Housing,Sundry Expenses,12/09/2013,DES 3116  LAN009,2500.00
Lancaster City Council,30UH,Lathams,Health & Housing,Materials For Resale,24/09/2013,20948,984.95
Lancaster City Council,30UH,LDN Wrestling,Health & Housing,Exhibitions & Events - Guarantees,04/09/2013,6092013,852.00
Lancaster City Council,30UH,LESS (Lancaster District) CIC,Health & Housing,Grants,12/09/2013,bpr000194,1638.00
Lancaster City Council,30UH,Litfest,Health & Housing,Entertainment Fees,19/09/2013,296,500.50
Lancaster City Council,30UH,Local Government Association,Governance,Legal & Court Costs,26/09/2013,40132666,1007.28
Lancaster City Council,30UH,Local Government Association,Resources,Services - Consultants,26/09/2013,40132462,733.00
Lancaster City Council,30UH,London Pupae,Health & Housing,Materials - General,17/09/2013,20823,499.50
Lancaster City Council,30UH,LUSU Services Company Limited,Health & Housing,Sundry Expenses,12/09/2013,Ltd0000003267,1310.00
Lancaster City Council,30UH,M & D Forsyth Electrical Services Ltd,Environmental Services,Void Maintenance - External,17/09/2013,244/1,688.00
Lancaster City Council,30UH,M D Hanafin & Sons Ltd,Environmental Services,Contracted Services,04/09/2013,104887,746.05
Lancaster City Council,30UH,M D Hanafin & Sons Ltd,Environmental Services,Contracted Services,04/09/2013,104894,688.62
Lancaster City Council,30UH,M D Hanafin & Sons Ltd,Environmental Services,Contracted Services,16/09/2013,105472,647.36
Lancaster City Council,30UH,M D Hanafin & Sons Ltd,Environmental Services,Contracted Services,16/09/2013,105527,831.40
Lancaster City Council,30UH,M D Hanafin & Sons Ltd,Environmental Services,Contracted Services,16/09/2013,105534,1211.02
Lancaster City Council,30UH,M D Hanafin & Sons Ltd,Environmental Services,Contracted Services,16/09/2013,105544,809.48
Lancaster City Council,30UH,M D Hanafin & Sons Ltd,Environmental Services,Contracted Services,16/09/2013,105545,629.94
Lancaster City Council,30UH,M D Hanafin & Sons Ltd,Environmental Services,Contracted Services,16/09/2013,105546,670.94
Lancaster City Council,30UH,M D Hanafin & Sons Ltd,Environmental Services,Contracted Services,16/09/2013,105555,564.20
Lancaster City Council,30UH,M D Hanafin & Sons Ltd,Environmental Services,Contracted Services,16/09/2013,105557,1129.40
Lancaster City Council,30UH,M D Hanafin & Sons Ltd,Environmental Services,Contracted Services,16/09/2013,105578,1144.02
Lancaster City Council,30UH,M D Hanafin & Sons Ltd,Environmental Services,Contracted Services,16/09/2013,105579,1978.57
Lancaster City Council,30UH,M D Hanafin & Sons Ltd,Environmental Services,Contracted Services,25/09/2013,105535,1228.51
Lancaster City Council,30UH,M D Hanafin & Sons Ltd,Environmental Services,Contracted Services,25/09/2013,105550,961.30
Lancaster City Council,30UH,Magnet Limited,Environmental Services,White Lund Stock,10/09/2013,158/158733,1940.00
Lancaster City Council,30UH,Mason Gillibrand Architects,Environmental Services,Capital Payments To Contractors,16/09/2013,51439,4584.82
Lancaster City Council,30UH,Maxigiene Environmental Services Limited,Environmental Services,Contract Maintenance,16/09/2013,16346C,900.00
Lancaster City Council,30UH,Mayer Brown Limited,Regeneration and Planning,Capital Payments To Contractors,18/09/2013,43468,2250.00
Lancaster City Council,30UH,Mayer Brown Limited,Regeneration and Planning,Capital Payments To Contractors,25/09/2013,43441,4750.00
Lancaster City Council,30UH,Mayer Brown Limited,Regeneration and Planning,Services - General,19/09/2013,43439,5000.00
Lancaster City Council,30UH,Mercer & Sons Limited,Environmental Services,White Lund Stock,23/09/2013,721622,958.40
Lancaster City Council,30UH,Metric Group Ltd,Environmental Services,Equipment and Tools - General,18/09/2013,C29822,2010.00
Lancaster City Council,30UH,Michael Wilson Joinery and Flat Roofing Specialist,Environmental Services,Capital Payments To Contractors,04/09/2013,024/13,5900.00
Lancaster City Council,30UH,Mick Liver Ltd,Health & Housing,Materials For Resale,30/09/2013,23,596.00
Lancaster City Council,30UH,Middleton`s-Electrical Contractors,Health & Housing,R & M - Buildings,18/09/2013,299,1119.70
Lancaster City Council,30UH,Mobile Mini UK Ltd,Environmental Services,Rota Painting,10/09/2013,712040998,900.00
Lancaster City Council,30UH,Mobile Mini UK Ltd,Environmental Services,Rota Painting,17/09/2013,712041883,900.00
Lancaster City Council,30UH,More Music in Morecambe Ltd,Health & Housing,Entertainment Fees,12/09/2013,2406,2000.00
Lancaster City Council,30UH,Morecambe Warblers AOS,Health & Housing,Venue - Premises Hire Costs,18/09/2013,14913 Platform,924.00
Lancaster City Council,30UH,Morgan Lambert Limited,Environmental Services,R & M - Buildings,04/09/2013,16604,525.00
Lancaster City Council,30UH,Mr Barry Berlin,Governance,Legal & Court Costs,18/09/2013,564019,1800.00
Lancaster City Council,30UH,N C Penrith Rural Drainage Specialists,Environmental Services,Contracted Services,12/09/2013,1795,1245.00
Lancaster City Council,30UH,N C Penrith Rural Drainage Specialists,Environmental Services,R & M - Buildings,13/09/2013,1797,2075.00
Lancaster City Council,30UH,N S Heating Services Ltd,Environmental Services,Contracted Services,12/09/2013,15638,750.00
Lancaster City Council,30UH,National Express,Health & Housing,National Express,03/09/2013,AREXT/00145825,758.04
Lancaster City Council,30UH,NHS Lanarkshire,Governance,Services - Medical Fees,02/09/2013,L0026628,2394.28
Lancaster City Council,30UH,NHS Lanarkshire,Governance,Services - Medical Fees,02/09/2013,L0026634,595.00
Lancaster City Council,30UH,NHS Lanarkshire,Governance,Services - Medical Fees,26/09/2013,L0026991,2394.22
Lancaster City Council,30UH,North West Timber Treatments Ltd,Environmental Services,Materials - General,18/09/2013,31985,537.86
Lancaster City Council,30UH,Northern Rail Ltd,Environmental Services,Car Parking Fees,18/09/2013,84027207,511.68
Lancaster City Council,30UH,Northgate Vehicle Hire Ltd,Environmental Services,Tpt & Plant - Casual Hire,05/09/2013,SL01962360INV,506.00
Lancaster City Council,30UH,NorthgateArinso UK Limited,Resources,Software Payroll-Personnel,16/09/2013,I2157064/6978,1147.50
Lancaster City Council,30UH,npower,Health & Housing,Electricity,11/09/2013,LGUMGSV2,5759.50
Lancaster City Council,30UH,npower,Health & Housing,Electricity,26/09/2013,LGUMG5QX,1579.64
Lancaster City Council,30UH,npower,Health & Housing,Electricity,26/09/2013,LGUMG5QX,1171.29
Lancaster City Council,30UH,npower,Health & Housing,Electricity,26/09/2013,LGUMG5QX,779.53
Lancaster City Council,30UH,npower,Environmental Services,Electricity,10/09/2013,LGUMGWJV,865.68
Lancaster City Council,30UH,npower,Environmental Services,Electricity,18/09/2013,LGUL8FWM,2005.60
Lancaster City Council,30UH,npower,Environmental Services,Electricity,18/09/2013,LGUMGSV6,1794.49
Lancaster City Council,30UH,npower,Environmental Services,Electricity,18/09/2013,LGUMGWHL,2104.91
Lancaster City Council,30UH,npower,Resources,Electricity,12/09/2013,LGUMGSV4,2656.52
Lancaster City Council,30UH,npower,Resources,Electricity,12/09/2013,LGUMGSV5,1456.95
Lancaster City Council,30UH,npower,Resources,Electricity,13/09/2013,LGUMGSV3,960.26
Lancaster City Council,30UH,npower,Resources,Electricity,13/09/2013,LGUMGSV7,2568.65
Lancaster City Council,30UH,npower,Resources,Electricity,13/09/2013,LGUMGWJY,1548.26
Lancaster City Council,30UH,npower,Resources,Electricity,17/09/2013,LGUMGWHN,1482.37
Lancaster City Council,30UH,NSL Limited,Environmental Services,Cash Collection Expenses,18/09/2013,019463,3847.50
Lancaster City Council,30UH,NSL Limited,Environmental Services,Contracted Services,18/09/2013,019463,7977.20
Lancaster City Council,30UH,OC Cleaning Limited,Environmental Services,Window Cleaning,10/09/2013,1686,554.67
Lancaster City Council,30UH,OC Cleaning Limited,Environmental Services,Window Cleaning,20/09/2013,1836,574.40
Lancaster City Council,30UH,Opinion Research Services,Regeneration and Planning,Miscellaneous Advertising,02/09/2013,060.13.14,3300.00
Lancaster City Council,30UH,Otis Ltd.,Environmental Services,Capital Payments To Contractors,26/09/2013,KS837738225,14967.60
Lancaster City Council,30UH,Otis Ltd.,Environmental Services,Contract Maintenance,12/09/2013,01087047,1279.70
Lancaster City Council,30UH,Otis Ltd.,Environmental Services,Contract Maintenance,26/09/2013,01051894,2066.39
Lancaster City Council,30UH,P G Whiteside,Environmental Services,Materials - General,18/09/2013,1554,1674.75
Lancaster City Council,30UH,P G Whiteside,Environmental Services,Materials - General,18/09/2013,1554,1185.00
Lancaster City Council,30UH,Parksafe (Systems) Ltd,Environmental Services,Parksafe,18/09/2013,1848,15334.33
Lancaster City Council,30UH,PATROL,Environmental Services,Services - Legal Costs,05/09/2013,4021,910.80
Lancaster City Council,30UH,Pentland Plants,Environmental Services,Materials - General,18/09/2013,51210,554.40
Lancaster City Council,30UH,Pentland Plants,Environmental Services,Materials - General,18/09/2013,51302,3780.00
Lancaster City Council,30UH,"Peter Atkin, T/A Pete`s Handyman Services",Health & Housing,Capital Grants,12/09/2013,spr000268,1385.60
Lancaster City Council,30UH,"Peter Atkin, T/A Pete`s Handyman Services",Health & Housing,Capital Grants,12/09/2013,spr000269,2042.01
Lancaster City Council,30UH,Piccadilly Garden Ltd.,Environmental Services,Contracted Services,18/09/2013,1829,918.42
Lancaster City Council,30UH,PlayQuest Adventure Play Ltd,Environmental Services,Materials - General,27/09/2013,6150,526.00
Lancaster City Council,30UH,Power Trading Limited T/A Think Bathrooms,Health & Housing,Capital Grants,02/09/2013,spr000258,3767.32
Lancaster City Council,30UH,Power Trading Limited T/A Think Bathrooms,Health & Housing,Capital Grants,03/09/2013,spr000264,2915.92
Lancaster City Council,30UH,Power Trading Limited T/A Think Bathrooms,Health & Housing,Capital Grants,11/09/2013,spr000265,1052.77
Lancaster City Council,30UH,PPG Architectural Coatings UK Limited,Environmental Services,White Lund Stock,09/09/2013,4465762593,588.11
Lancaster City Council,30UH,PPG Architectural Coatings UK Limited,Environmental Services,White Lund Stock,30/09/2013,4465714394,520.80
Lancaster City Council,30UH,PR Chauffeuring Services,Governance,Central Transport - General,17/09/2013,PR17/09/13,590.00
Lancaster City Council,30UH,Preston City Council,Resources,Grants,13/09/2013,M36 Sept,12147.01
Lancaster City Council,30UH,Preston City Council,Governance,Legal & Court Costs,26/09/2013,01649498,1463.80
Lancaster City Council,30UH,Preston City Council,Resources,Management Fees,13/09/2013,M36 Sept,179000.00
Lancaster City Council,30UH,Preston City Council,Regeneration and Planning,Services - Consultants,26/09/2013,01647598,1253.18
Lancaster City Council,30UH,Profile Security Services Ltd,Environmental Services,Security Services,10/09/2013,97201,5979.40
Lancaster City Council,30UH,Pump Supplies Ltd,Regeneration and Planning,R & M - General,10/09/2013,WCR3624,-650.00
Lancaster City Council,30UH,Pump Supplies Ltd,Regeneration and Planning,R & M - General,10/09/2013,WI169380,2764.00
Lancaster City Council,30UH,Purchase Power,Resources,Postages,11/09/2013,BA884436,2026.00
Lancaster City Council,30UH,Pye Motors  Ltd,Environmental Services,Purchase Of Vehicles Etc,12/09/2013,26567,13264.00
Lancaster City Council,30UH,Quartzelec Ltd,Environmental Services,Capital Payments To Contractors,04/09/2013,7060112,948.18
Lancaster City Council,30UH,Quartzelec Ltd,Environmental Services,Capital Payments To Contractors,04/09/2013,7060114,596.28
Lancaster City Council,30UH,Quite Simply Food,Health & Housing,Sundry Expenses,02/09/2013,20640,714.58
Lancaster City Council,30UH,R Briggs & Son (Lancaster) Ltd,Environmental Services,Electrical Inspections,30/09/2013,16746,1480.40
Lancaster City Council,30UH,R Briggs & Son (Lancaster) Ltd,Environmental Services,R & M - Buildings,16/09/2013,16735,1775.00
Lancaster City Council,30UH,R Briggs & Son (Lancaster) Ltd,Environmental Services,R & M - Buildings,23/09/2013,16744,4485.90
Lancaster City Council,30UH,R G Parkins & Partners Ltd,Environmental Services,Contracted Services,25/09/2013,L29141/04,680.20
Lancaster City Council,30UH,R G Parkins & Partners Ltd,Resources,External Professional Fees,18/09/2013,L29397/02,1470.00
Lancaster City Council,30UH,R G Parkins & Partners Ltd,Resources,R & M - Buildings,11/09/2013,L30197/01,705.00
Lancaster City Council,30UH,R G Parkins & Partners Ltd,Resources,R & M - Buildings,17/09/2013,L30036/02,500.00
Lancaster City Council,30UH,RandomStorm Ltd,Resources,Infrastructure - Update & Maintenance,25/09/2013,INV-2798,8906.10
Lancaster City Council,30UH,Remploy Ltd ,Environmental Services,Contracted Services,10/09/2013,SLS/80305666,6910.50
Lancaster City Council,30UH,Rigby Taylor Ltd,Environmental Services,Materials - General,18/09/2013,RSIN0070158,654.00
Lancaster City Council,30UH,Riley Fireworks Ltd,Health & Housing,Entertainment Fees,25/09/2013,00102B/13,3150.00
Lancaster City Council,30UH,Rothwell Plumbing Services Limited,Health & Housing,Materials - General,12/09/2013,spr000267,500.00
Lancaster City Council,30UH,RSA Environmental Health Ltd,Health & Housing,Services - Consultants,25/09/2013,112365,1464.60
Lancaster City Council,30UH,RSPB,Regeneration and Planning,Grants,11/09/2013,npr000087,11138.90
Lancaster City Council,30UH,Russ Coleman (sculptor),Regeneration and Planning,R & M - General,13/09/2013,FOW7,7000.00
Lancaster City Council,30UH,S A Johnstone,Health & Housing,Services - General,18/09/2013,152087,600.00
Lancaster City Council,30UH,Shorrocks Building Works,Environmental Services,Contracted Services,25/09/2013,3163,547.00
Lancaster City Council,30UH,Shorrocks Building Works,Environmental Services,Void Maintenance - External,19/09/2013,3157,2573.00
Lancaster City Council,30UH,Shorrocks Building Works,Environmental Services,Void Maintenance - External,19/09/2013,3158,1100.00
Lancaster City Council,30UH,SitexOrbis Limited,Regeneration and Planning,Security Services,23/09/2013,RO489991M,1190.31
Lancaster City Council,30UH,SitexOrbis Limited,Environmental Services,Void Maintenance - External,16/09/2013,R0490526,704.12
Lancaster City Council,30UH,Slater Safety Supplies,Environmental Services,White Lund Stock,09/09/2013,139186,899.50
Lancaster City Council,30UH,Slater Safety Supplies,Environmental Services,White Lund Stock,16/09/2013,139391,639.00
Lancaster City Council,30UH,Southport Flower Show,Health & Housing,Concerts - General,30/09/2013,2013123,756.00
Lancaster City Council,30UH,Southport Flower Show,Regeneration and Planning,Concerts - General,04/09/2013,20767,604.80
Lancaster City Council,30UH,Steve Gibson Windows Limited,Health & Housing,Home Improvement Works,23/09/2013,Inv. 2413,1120.00
Lancaster City Council,30UH,Stonewell Property Company Ltd,Resources,Rent,26/09/2013,SI10135,17500.00
Lancaster City Council,30UH,Stonewell Property Company Ltd,Resources,Service Charges,26/09/2013,SI10136,2569.83
Lancaster City Council,30UH,Supalite Fencing,Environmental Services,Other Construction Costs,24/09/2013,40875,2198.40
Lancaster City Council,30UH,Suttons Sectional Buildings,Environmental Services,R & M - Buildings,04/09/2013,Lan-100,2800.00
Lancaster City Council,30UH,Sympathetic Developments,Health & Housing,Exhibitions & Events - % Above Guarantee,17/09/2013,203/13,1000.00
Lancaster City Council,30UH,Tarmac Ltd,Environmental Services,Materials - General,12/09/2013,9030015341,726.24
Lancaster City Council,30UH,Tarmac Ltd,Environmental Services,White Lund Stock,20/09/2013,9030039038,540.29
Lancaster City Council,30UH,TCL Developments Limited,Environmental Services,Capital Payments To Contractors,16/09/2013,683,1335.55
Lancaster City Council,30UH,The Aerobatic Aviation Company,Health & Housing,Entertainment Fees,25/09/2013,01-151,2189.00
Lancaster City Council,30UH,The Bay,Health & Housing,Miscellaneous Advertising,18/09/2013,547451,602.33
Lancaster City Council,30UH,The James Mercer Group,Health & Housing,R & M - Buildings,02/09/2013,DW07080,538.44
Lancaster City Council,30UH,the Law Society,Governance,Professional Fees Etc,17/09/2013,20872,880.00
Lancaster City Council,30UH,The Paul Hayes Collection LLP,Health & Housing,Venue - Premises Hire Costs,05/09/2013,1092013,1406.50
Lancaster City Council,30UH,The Performing Right Society,Health & Housing,Miscellaneous Licences,18/09/2013,4043462,5175.01
Lancaster City Council,30UH,The Uniform & Leisurewear Company Ltd,Health & Housing,Clothing & Uniforms,18/09/2013,66726,728.67
Lancaster City Council,30UH,T-Mobile (UK) Ltd.,Resources,Mobile Telephones,04/09/2013,V00925388077,2633.64
Lancaster City Council,30UH,TNT Post North Limited,Resources,Postages,04/09/2013,IN18US13003290,2915.95
Lancaster City Council,30UH,TNT Post North Limited,Resources,Postages,10/09/2013,IN18US13002947,2900.90
Lancaster City Council,30UH,TNT Post North Limited,Resources,Postages,10/09/2013,IN18US13003665,1144.65
Lancaster City Council,30UH,TNT Post North Limited,Resources,Postages,19/09/2013,IN18U513003974,1792.87
Lancaster City Council,30UH,Total Gas and Power,Health & Housing,Gas,17/09/2013,20850,984.31
Lancaster City Council,30UH,Travellers Choice,Health & Housing,Tpt & Plant - Casual Hire,10/09/2013,20752,510.00
Lancaster City Council,30UH,Tunstall Telecom,Environmental Services,Contracted Services,26/09/2013,50253834,534.54
Lancaster City Council,30UH,Tunstall Telecom,Environmental Services,Contracted Services,26/09/2013,50255166,1585.18
Lancaster City Council,30UH,Turley Associates Ltd,Regeneration and Planning,Services - General,13/09/2013,M1005011,3774.40
Lancaster City Council,30UH,Turley Associates Ltd,Regeneration and Planning,Services - General,13/09/2013,M1005012,1000.00
Lancaster City Council,30UH,Tyrone Lewis General Building Contractors,Environmental Services,Capital Payments To Contractors,06/09/2013,,790.00
Lancaster City Council,30UH,Tyrone Lewis General Building Contractors,Environmental Services,Contracted Services,03/09/2013,,4424.00
Lancaster City Council,30UH,Tyrone Lewis General Building Contractors,Environmental Services,Contracted Services,10/09/2013,,1000.00
Lancaster City Council,30UH,Tyrone Lewis General Building Contractors,Health & Housing,Grave Excavation,23/09/2013,BRICK VAULT,678.00
Lancaster City Council,30UH,uk active,Health & Housing,Miscellaneous Licences,23/09/2013,20921,"1,658.70"
Lancaster City Council,30UH,United Utilities,Health & Housing,Water Services,06/09/2013,20729,"1,479.55"
Lancaster City Council,30UH,United Utilities,Health & Housing,Water Services,06/09/2013,20731,927.29
Lancaster City Council,30UH,United Utilities,Health & Housing,Water Services,17/09/2013,20855,"12,688.57"
Lancaster City Council,30UH,United Utilities,Health & Housing,Water Services,04/09/2013,4171193474,9868.06
Lancaster City Council,30UH,United Utilities,Resources,Water Services,06/09/2013,4195368975,1479.55
Lancaster City Council,30UH,United Utilities,Resources,Water Services,10/09/2013,4030814116,707.29
Lancaster City Council,30UH,United Utilities,Resources,Water Services,23/09/2013,4085689636,2073.72
Lancaster City Council,30UH,United Utilities,Health & Housing,Water Services,25/09/2013,407 777 1912,9014.82
Lancaster City Council,30UH,United Utilities,Environmental Services,Water Services,05/09/2013,4085689738,1092.42
Lancaster City Council,30UH,United Utilities,Environmental Services,Water Services,05/09/2013,4085689794,1231.78
Lancaster City Council,30UH,United Utilities,Environmental Services,Water Services,18/09/2013,4081667854,4148.84
Lancaster City Council,30UH,United Utilities,Environmental Services,Water Services,18/09/2013,4085689614,618.62
Lancaster City Council,30UH,United Utilities,Environmental Services,Water Services,24/09/2013,4025466182,1479.55
Lancaster City Council,30UH,Universal Pool Services Ltd,Health & Housing,R & M - Buildings,11/09/2013,0443,5218.00
Lancaster City Council,30UH,Valley View Pets Hotel,Health & Housing,Services - Kennelling,19/09/2013,22/13,2695.00
Lancaster City Council,30UH,Valley View Pets Hotel,Health & Housing,Services - Kennelling,23/09/2013,20/13,2695.00
Lancaster City Council,30UH,Van Bodies (Lancs.) Ltd,Environmental Services,Purchase Of Vehicles Etc,03/09/2013,014575,542.50
Lancaster City Council,30UH,Vertical Access Ltd.,Resources,R & M - Buildings,11/09/2013,3823,1300.00
Lancaster City Council,30UH,Vodafone Limited,Resources,Mobile Telephones,04/09/2013,68746733,5519.76
Lancaster City Council,30UH,VPS (UK) Limited,Environmental Services,Void Maintenance - External,06/09/2013,690124,560.00
Lancaster City Council,30UH,VPS (UK) Limited,Environmental Services,Void Maintenance - External,06/09/2013,690125,585.00
Lancaster City Council,30UH,VPS (UK) Limited,Environmental Services,Void Maintenance - External,16/09/2013,692547,560.00
Lancaster City Council,30UH,VPS (UK) Limited,Environmental Services,Void Maintenance - External,16/09/2013,692549,4400.00
Lancaster City Council,30UH,Watkins Hire Limited,Resources,R & M - Buildings,10/09/2013,43774,3000.00
Lancaster City Council,30UH,Whinfield Study Trust,Health & Housing,Gas,12/09/2013,WHO125,682.42
Lancaster City Council,30UH,Wolters Kluwer (UK) Ltd,Health & Housing,Corporate Safety,26/09/2013,50789906,634.11
Lancaster City Council,30UH,Wybone Limited,Environmental Services,Materials - General,18/09/2013,100646/B,858.00
Lancaster City Council,30UH,"Your Electrical S, S & S Ltd  T/a YESSS Electrical",Environmental Services,Materials - General,16/09/2013,062IN00734,5226.00
Lancaster City Council,30UH,"Your Electrical S, S & S Ltd  T/a YESSS Electrical",Environmental Services,Other Construction Costs,25/09/2013,D62IN01178,2027.63
Lancaster City Council,30UH,Zest Publication Ltd,Health & Housing,Printing & Stationery,25/09/2013,2630,850.00
Lancaster City Council,30UH,Zoeller Waste Systems Limited,Environmental Services,Repair & Mtce Of Vehicles,02/09/2013,SVI23603,780.23
Lancaster City Council,30UH,Zoeller Waste Systems Limited,Environmental Services,Repair & Mtce Of Vehicles,02/09/2013,SVI23835,730.56
